bitfinex-derivatives/quotes_ETHF0:USTF0_20250114
["timestamp","ask_amount","ask_price","bid_price","bid_amount"]
[1736825414652,0.31506,3175.4,3175.0,1.7299]
[1736825414861,0.73197031,3175.5,3175.0,1.7299]
[1736825415062,1.04702031,3175.5,3175.0,2.04499]
[1736825415255,0.31506,3175.4,3175.0,2.04499]
[1736825415666,0.73197031,3175.5,3175.0,2.04499]
[1736825415856,0.31506,3175.4,3175.0,2.04499]
[1736825416057,0.81215,3175.5,3175.0,2.04499]
[1736825416267,0.4971,3175.5,3175.0,1.7299]
[1736825416563,0.2408516,3175.2,3175.0,1.7299]
[1736825417565,0.2408516,3175.2,3175.1,0.31509]
[1736825417760,0.2408516,3175.2,3175.0,4.57941272]
[1736825418063,2.77527432,3175.2,3174.1,2.53442272]
[1736825418258,0.31514,3174.6,3174.2,4.6258]
[1736825418464,0.4699,3174.5,3174.2,2.682]
[1736825418663,0.31512,3174.8,3174.3,0.31516]
[1736825418965,1.4441,3174.9,3174.4,2.53442272]
[1736825419165,0.4699,3174.9,3174.7,2.53442272]
[1736825419360,3.2078,3175.0,3174.9,0.31511]
[1736825419664,0.2408516,3175.2,3175.0,0.31509]
[1736825419864,0.2408516,3175.2,3175.1,2.53442272]
[1736825420059,0.2408516,3175.2,3174.9,1.264]
[1736825420265,0.31509,3175.1,3174.9,1.264]
[1736825420465,0.2408516,3175.2,3175.0,0.3151]
[1736825420854,0.2408516,3175.2,3174.9,1.264]
[1736825421258,0.2408516,3175.2,3175.0,0.31509]
[1736825421858,0.4699,3175.4,3175.1,0.31509]
[1736825422354,0.4942,3175.8,3175.1,5.74222272]
[1736825422555,0.9581,3175.8,3175.4,2.53442272]
[1736825422960,1.27312,3175.8,3175.5,0.4618]
[1736825423160,0.9581,3175.8,3175.1,2.53442272]
[1736825423360,0.31505,3175.5,3175.1,2.53442272]
[1736825423567,0.31504,3175.6,3175.2,2.53442272]
[1736825423767,0.31504,3175.6,3175.2,2.84950272]
[1736825423963,0.31504,3175.6,3175.2,2.53442272]
[1736825424164,0.9581,3175.8,3175.2,2.84949272]
[1736825424365,0.31504,3175.6,3175.2,2.84949272]
[1736825424571,1.27312,3175.8,3175.5,2.53442272]
[1736825424770,0.31503,3175.7,3175.5,2.53442272]
[1736825425965,0.77892,3175.8,3175.5,2.53442272]
[1736825426272,0.31503,3175.7,3175.5,2.53442272]
[1736825426473,1.12025011,3175.9,3175.5,2.84947272]
[1736825426674,0.31502,3175.8,3175.6,0.9369]
[1736825427072,0.80524011,3175.9,3175.6,0.9369]
[1736825427272,0.31502,3175.8,3175.6,0.9369]
[1736825428772,0.31503,3175.7,3175.6,0.9369]
[1736825429459,0.31502,3175.8,3175.6,0.9369]
[1736825429671,3.6726,3176.0,3175.6,0.9369]
[1736825429860,0.31503,3175.8,3175.6,0.9369]
[1736825430261,0.31505,3175.5,3175.2,2.53442272]
[1736825430466,0.482,3175.7,3175.3,1.264]
[1736825431077,0.31504,3175.6,3175.3,1.264]
[1736825431874,0.5561495,3175.7,3175.3,1.57906]
[1736825432261,0.31501,3175.9,3175.5,2.84947272]
[1736825432466,0.31501,3175.9,3175.6,0.4918]
[1736825432667,0.31501,3175.9,3175.6,1.4302]
[1736825432867,3.6726,3176.0,3175.6,1.4302]
[1736825432868,3.2078,3176.0,3175.8,2.53442272]
[1736825434169,3.5228,3176.0,3175.8,2.53442272]
[1736825434373,0.79849,3176.1,3175.7,0.31503]
[1736825434576,0.315,3176.0,3175.6,4.27965272]
[1736825435166,0.7985,3176.1,3175.7,0.31503]
[1736825435565,0.001,3176.2,3175.9,2.53442272]
[1736825435776,0.001,3176.2,3176.0,0.315]
[1736825435976,0.001,3176.2,3175.9,2.53442272]
[1736825436172,0.001,3176.2,3176.1,0.31499]
[1736825436774,0.001,3176.2,3176.1,0.80109]
[1736825441376,0.001,3176.2,3176.1,0.4861]
[1736825441577,0.001,3176.2,3176.1,0.80109]
[1736825442779,0.001,3176.2,3176.1,0.4861]
[1736825443180,0.31598,3176.2,3176.1,0.4861]
[1736825443590,0.315,3176.0,3175.9,4.4708]
[1736825443787,0.4895,3176.1,3175.9,7.32022272]
[1736825444080,0.4895,3176.1,3175.9,7.00522272]
[1736825444289,0.4895,3176.1,3175.9,7.32022272]
[1736825444483,0.001,3176.2,3175.9,7.00522272]
[1736825444679,0.001,3176.2,3176.1,0.31499]
[1736825445774,3.2078,3176.8,3176.1,5.0]
[1736825445974,0.31487,3177.4,3177.0,0.31489]
[1736825446181,0.23748404,3177.6,3177.2,2.53442272]
[1736825446379,0.31486,3177.5,3177.3,0.4911]
[1736825446585,0.4574,3177.7,3177.3,0.80597]
[1736825446880,0.77224,3177.7,3177.3,0.80597]
[1736825447288,0.4574,3177.7,3177.6,2.53442272]
[1736825447480,0.77223,3177.7,3177.3,3.34039272]
[1736825447785,0.77223,3177.7,3177.3,3.02552272]
[1736825447786,0.4574,3177.7,3177.3,3.02552272]
[1736825447986,0.77224,3177.7,3177.3,3.02552272]
[1736825448179,0.4574,3177.7,3177.3,3.02552272]
[1736825448378,0.77223,3177.7,3177.3,3.34038272]
[1736825448692,0.4574,3177.7,3177.3,3.02552272]
[1736825449185,0.4574,3177.7,3177.5,0.31485]
[1736825449685,3.6713,3177.8,3177.3,3.02552272]
[1736825449880,3.98613,3177.8,3177.4,0.31485]
[1736825450485,3.6713,3177.8,3177.3,3.02552272]
[1736825450777,3.98612,3177.8,3177.4,0.31485]
[1736825451077,3.2078,3177.8,3177.7,0.31483]
[1736825451483,3.2078,3177.8,3177.6,2.53442272]
[1736825452187,3.52263,3177.8,3177.6,2.53442272]
[1736825452382,3.2078,3177.8,3177.6,2.53442272]
[1736825452689,3.2078,3177.8,3177.6,2.84926272]
[1736825452890,3.2078,3177.8,3177.6,2.53442272]
[1736825453079,0.31484,3177.6,3177.3,4.60339272]
[1736825453285,0.80094,3177.7,3177.4,0.31485]
[1736825453484,0.31484,3177.7,3177.5,0.31485]
[1736825453682,3.52263,3177.8,3177.5,0.31485]
[1736825453984,0.31483,3177.7,3177.4,0.31486]
[1736825454682,0.31483,3177.7,3177.3,4.28852272]
[1736825454683,3.2078,3177.8,3177.3,4.28852272]
[1736825454880,3.2078,3177.8,3177.7,0.31483]
[1736825455080,3.2078,3177.8,3177.6,2.84925272]
[1736825455279,3.2078,3177.8,3177.7,0.31483]
[1736825455678,3.2078,3177.8,3177.6,2.84925272]
[1736825455885,3.2078,3177.8,3177.7,0.31483]
[1736825456785,0.4665,3177.9,3177.7,0.31483]
[1736825456986,0.4665,3177.9,3177.8,0.31482]
[1736825457289,0.4665,3177.9,3177.7,0.31483]
[1736825458789,0.31486,3177.4,3177.1,3.52269]
[1736825458983,0.4927,3177.3,3177.2,0.31488]
[1736825459185,0.4927,3177.3,3177.1,3.2078]
[1736825459186,0.4583,3177.7,3177.6,0.31484]
[1736825459388,0.318127,3178.0,3177.7,0.31482]
[1736825459587,0.318127,3178.0,3177.6,1.263]
[1736825459787,0.003327,3178.0,3177.6,3.79742272]
[1736825460290,0.003327,3178.0,3177.3,2.53442272]
[1736825460486,0.31486,3177.4,3177.3,2.53442272]
[1736825460889,3.2078,3177.6,3177.1,1.263]
[1736825461086,0.9465,3177.3,3177.1,1.263]
[1736825461285,0.31492,3176.8,3176.7,3.79742272]
[1736825461487,3.2078,3177.2,3176.4,2.53442272]
[1736825461991,3.52273,3176.7,3176.4,2.53442272]
[1736825462190,0.4526,3176.6,3176.4,2.53442272]
[1736825462593,0.9465,3176.6,3176.4,2.53442272]
[1736825462987,1.26145,3176.6,3176.4,2.53442272]
[1736825463186,0.9465,3176.6,3176.4,2.53442272]
[1736825463489,0.9465,3176.6,3176.5,0.31495]
[1736825464193,0.9465,3176.6,3176.4,2.84930462]
[1736825464494,0.31495,3176.5,3176.4,2.53434462]
[1736825466110,0.31495,3176.5,3176.4,2.21931652]
[1736825466595,0.9465,3176.6,3176.4,2.21931652]
[1736825466993,0.9465,3176.6,3176.4,2.53426652]
[1736825467992,0.31495,3176.5,3176.4,1.9041077]
[1736825468192,0.31497,3176.3,3176.2,1.263]
[1736825468487,0.31498,3176.2,3176.1,4.4708]
[1736825468690,0.4575,3176.5,3176.1,7.00522272]
[1736825468993,0.31497,3176.3,3176.1,7.00522272]
[1736825469193,0.4575,3176.5,3176.1,7.00522272]
[1736825469596,0.31498,3176.2,3176.1,7.00522272]
[1736825469894,0.31498,3176.3,3175.9,0.31501]
[1736825470201,0.4575,3176.5,3175.9,2.53442272]
[1736825470395,0.31498,3176.3,3175.9,2.53442272]
[1736825470694,0.31496,3176.5,3176.2,2.53442272]
[1736825470896,0.9465,3176.6,3176.2,2.53442272]
[1736825471091,0.31495,3176.5,3176.2,2.53442272]
[1736825471291,0.9465,3176.6,3176.2,2.53442272]
[1736825471490,0.31496,3176.4,3176.2,2.53442272]
[1736825471888,0.9465,3176.6,3176.2,2.53442272]
[1736825472089,0.31499,3176.2,3175.9,3.43792272]
[1736825472484,0.9465,3176.6,3175.9,3.43792272]
[1736825472694,0.315,3176.0,3175.9,2.53442272]
[1736825474492,0.31499,3176.1,3175.9,2.53442272]
[1736825474694,0.315,3176.0,3175.9,2.53442272]
[1736825475692,0.31503,3175.7,3175.6,2.53442272]
[1736825475893,3.2078,3176.3,3175.6,2.53442272]
[1736825476200,0.4893,3176.2,3175.6,2.53442272]
[1736825476405,0.31502,3175.8,3175.6,2.53442272]
[1736825477397,0.23751772,3176.0,3175.6,2.53442272]
[1736825477398,0.4979,3175.9,3175.6,2.53442272]
[1736825477898,3.2078,3176.3,3175.6,5.74222272]
[1736825478103,0.78723,3177.2,3176.2,2.53442272]
[1736825478104,0.31496,3176.4,3176.2,2.53442272]
[1736825478305,3.2078,3176.7,3176.2,2.53442272]
[1736825478496,0.31497,3176.3,3176.2,2.53442272]
[1736825480907,3.2078,3176.3,3175.7,0.4529]
[1736825481205,0.31501,3175.9,3175.7,0.4529]
[1736825481802,0.31503,3175.7,3175.6,6.21522272]
[1736825482098,0.31503,3175.7,3175.6,0.473]
[1736825482300,0.31505,3175.5,3175.4,1.263]
[1736825482900,0.31513,3174.7,3174.3,3.2078]
[1736825483203,0.31517,3174.3,3174.0,2.53442272]
[1736825483405,0.4684,3174.6,3174.0,2.99252272]
[1736825483801,0.31519,3174.1,3174.0,0.4581]
[1736825484106,0.31519,3174.2,3173.9,1.263]
[1736825484310,0.4646,3174.5,3173.9,1.263]
[1736825484510,0.31519,3174.1,3173.9,1.263]
[1736825485308,0.3152,3174.0,3173.9,1.263]
[1736825485702,0.31518,3174.2,3173.8,0.4581]
[1736825486010,0.31519,3174.1,3173.8,0.4581]
[1736825487202,0.54916903,3174.1,3173.8,0.4581]
[1736825487503,0.31521,3173.9,3173.8,0.4581]
[1736825489909,0.23397903,3174.1,3173.6,1.7197]
[1736825490110,0.31523,3173.7,3173.6,1.7197]
[1736825490505,0.31523,3173.7,3173.6,1.263]
[1736825490706,0.4909,3174.0,3173.6,1.263]
[1736825490907,0.31518,3174.2,3173.8,2.53442272]
[1736825491409,0.31518,3174.2,3173.8,2.84963272]
[1736825491609,0.31518,3174.2,3173.8,4.11363272]
[1736825491810,0.31519,3174.1,3173.8,3.79842272]
[1736825492012,3.2078,3174.3,3173.8,3.79842272]
[1736825492403,0.31518,3174.2,3173.8,3.79842272]
[1736825492610,0.24084814,3174.1,3173.8,3.79842272]
[1736825492806,0.24084814,3174.1,3173.4,0.4497]
[1736825493007,0.31522,3173.8,3173.5,2.53442272]
[1736825493211,0.3152,3174.0,3173.6,0.31524]
[1736825493602,0.24084814,3174.1,3173.5,2.53442272]
[1736825493805,0.24084814,3174.1,3173.8,2.84964272]
[1736825494100,0.24084814,3174.1,3173.8,2.84963272]
[1736825494506,0.55603814,3174.1,3173.8,2.53442272]
[1736825496013,0.24084814,3174.1,3173.7,3.2078]
[1736825496211,0.31522,3173.8,3173.7,3.2078]
[1736825497101,0.31525,3173.5,3173.4,0.4497]
[1736825497305,0.31526,3173.4,3173.3,3.2078]
[1736825498311,0.9456,3173.7,3173.3,3.2078]
[1736825498606,0.31526,3173.4,3173.3,3.2078]
[1736825498810,0.9456,3173.7,3173.3,3.2078]
[1736825499013,0.31526,3173.4,3173.3,3.2078]
[1736825499410,0.9456,3173.7,3173.3,3.2078]
[1736825499607,0.31525,3173.5,3173.3,3.2078]
[1736825500913,0.31526,3173.4,3173.3,3.2078]
[1736825501102,0.9456,3173.7,3173.3,3.2078]
[1736825501302,0.3152,3174.0,3173.6,0.31523]
[1736825501506,0.31522,3173.8,3173.5,2.53442272]
[1736825501714,0.31523,3173.7,3173.5,2.53442272]
[1736825501911,3.2078,3174.0,3173.3,3.2078]
[1736825502113,0.31525,3173.5,3173.3,3.2078]
[1736825502906,1.02882814,3174.1,3173.3,3.2078]
[1736825502907,0.24084814,3174.1,3173.3,3.2078]
[1736825503218,0.24084814,3174.1,3173.9,0.3152]
[1736825503410,0.24084814,3174.1,3174.0,0.4772]
[1736825503620,0.3152,3174.0,3173.5,2.84966272]
[1736825503815,0.31522,3173.8,3173.5,2.53442272]
[1736825504117,0.3152,3174.0,3173.6,0.4772]
[1736825504318,0.31522,3173.8,3173.6,0.4772]
[1736825506715,0.23408886,3174.1,3173.6,0.4772]
[1736825506912,3.2078,3174.0,3173.2,6.22462272]
[1736825507116,0.9467,3173.9,3173.2,6.22462272]
[1736825507312,0.9467,3173.9,3173.3,0.78606]
[1736825507625,0.31523,3173.7,3173.5,2.53442272]
[1736825508213,0.451,3173.9,3173.5,2.84966272]
[1736825508214,0.76621,3173.9,3173.5,2.84966272]
[1736825508529,0.76621,3173.9,3173.6,0.31524]
[1736825508821,0.451,3173.9,3173.6,0.31524]
[1736825509119,3.2078,3174.0,3173.9,0.31521]
[1736825509317,3.6588,3174.5,3174.0,0.3152]
[1736825509619,0.31518,3174.2,3174.1,0.4843]
[1736825510124,3.6588,3174.5,3174.1,0.4843]
[1736825510125,0.31516,3174.4,3174.1,0.4843]
[1736825510623,0.31517,3174.3,3174.1,0.4843]
[1736825511830,3.2078,3174.5,3174.4,0.31516]
[1736825512125,3.2078,3175.4,3174.4,3.80242272]
[1736825512316,0.31512,3174.8,3174.4,4.11758272]
[1736825512714,0.4574,3174.9,3174.4,1.268]
[1736825512916,0.31515,3174.5,3174.4,1.268]
[1736825513423,3.2078,3174.6,3174.1,6.22652272]
[1736825513621,3.52294,3174.6,3174.1,6.22652272]
[1736825513816,3.52294,3174.6,3174.2,0.4672]
[1736825514128,0.31514,3174.6,3174.3,0.31517]
[1736825514428,3.2078,3174.6,3174.1,3.6921]
[1736825514725,0.31516,3174.4,3174.1,3.6921]
[1736825515225,0.31516,3174.4,3174.1,6.22652272]
[1736825515418,3.2078,3174.6,3174.1,6.22652272]
[1736825515620,0.31515,3174.5,3174.1,6.54170272]
[1736825516227,3.2078,3174.6,3174.1,6.22652272]
[1736825516429,0.31517,3174.3,3174.1,6.22652272]
[1736825516632,3.2078,3174.6,3174.1,3.6921]
[1736825516929,3.2078,3174.6,3173.9,0.4567]
[1736825516930,0.3152,3174.0,3173.9,0.4567]
[1736825517127,3.2078,3174.2,3173.6,1.7428]
[1736825517322,0.4736,3174.1,3173.6,0.4748]
[1736825517627,0.31523,3173.7,3173.6,0.4748]
[1736825519043,0.31524,3173.7,3173.3,1.26326]
[1736825519525,0.972,3174.1,3173.3,0.4735]
[1736825519837,0.31526,3173.4,3173.3,0.4735]
[1736825520529,0.972,3174.1,3173.3,0.4735]
[1736825520835,0.972,3174.1,3173.2,7.01022272]
[1736825520836,0.31527,3173.3,3173.2,4.4758]
[1736825522131,0.31527,3173.3,3173.2,3.2078]
[1736825523228,3.2078,3173.8,3173.2,5.74222272]
[1736825523431,3.2078,3173.8,3173.3,0.4958]
[1736825523739,0.31526,3173.4,3173.3,0.4958]
[1736825524030,0.31527,3173.3,3173.2,3.2078]
[1736825524423,3.2078,3173.3,3172.6,3.2078]
[1736825524628,3.2078,3172.9,3172.3,0.4527]
[1736825524833,3.2078,3172.9,3172.4,0.4709]
[1736825525036,0.31532,3172.8,3172.4,0.4709]
[1736825525334,3.2078,3172.9,3172.6,2.53442272]
[1736825525534,0.31531,3172.9,3172.6,2.53442272]
[1736825525729,0.4497,3173.2,3172.6,2.53442272]
[1736825525930,0.4497,3173.2,3172.4,0.4709]
[1736825526232,0.31531,3172.9,3172.4,0.4709]
[1736825526437,0.31529,3173.1,3172.6,2.84975272]
[1736825526635,0.3153,3173.0,3172.6,2.84975272]
[1736825526837,0.31532,3172.8,3172.6,2.53442272]
[1736825527338,3.2078,3173.1,3172.4,0.4709]
[1736825527637,0.31532,3172.8,3172.4,0.78625]
[1736825527835,3.2078,3173.1,3172.6,2.84975272]
[1736825528032,3.2078,3173.1,3172.4,0.4709]
[1736825528033,3.2078,3173.1,3172.9,2.53442272]
[1736825528231,3.2078,3173.1,3173.0,2.6924]
[1736825528938,3.52309,3173.1,3173.0,2.214]
[1736825529334,3.52309,3173.1,3173.0,1.7495]
[1736825529531,3.52309,3173.1,3173.0,1.268]
[1736825529837,0.31534,3172.6,3172.5,2.214]
[1736825530335,3.2078,3172.7,3172.0,3.80242272]
[1736825530541,0.31538,3172.2,3172.0,3.95882272]
[1736825530739,3.2078,3172.7,3172.0,5.22682272]
[1736825530935,0.31538,3172.2,3172.0,5.22682272]
[1736825531541,0.31539,3172.1,3172.0,1.7495]
[1736825531937,0.3154,3172.0,3171.9,3.2078]
[1736825532937,3.2078,3172.7,3171.9,3.2078]
[1736825533441,0.31539,3172.1,3171.9,3.2078]
[1736825533741,0.31539,3172.1,3171.8,1.276]
[1736825533944,0.3154,3172.0,3171.8,1.276]
[1736825534142,0.3154,3172.0,3171.7,2.98422272]
[1736825534342,0.31542,3171.8,3171.7,0.4498]
[1736825537340,1.17309075,3172.2,3171.7,0.4498]
[1736825537542,0.31542,3171.8,3171.7,0.4498]
[1736825538144,1.17309075,3172.2,3171.7,0.4498]
[1736825538442,1.17309075,3172.2,3171.7,2.98422272]
[1736825538443,0.9397,3172.2,3171.7,2.98422272]
[1736825538643,3.52317,3172.3,3171.9,0.3154]
[1736825539352,3.2078,3172.3,3172.0,2.84981272]
[1736825539741,3.2078,3172.3,3172.2,0.31538]
[1736825539944,3.5231,3173.0,3172.6,0.31533]
[1736825540248,0.31531,3172.9,3172.7,0.9591]
[1736825540448,0.31532,3172.8,3172.7,0.9591]
[1736825540847,0.31532,3172.8,3172.7,0.4844]
[1736825541248,3.2078,3173.0,3172.3,6.21692272]
[1736825541249,0.31535,3172.5,3172.3,6.21692272]
[1736825541549,0.31535,3172.5,3172.3,6.70132272]
[1736825542150,3.2078,3173.0,3172.3,4.1669]
[1736825542347,0.31536,3172.4,3172.3,3.6922]
[1736825543146,0.31536,3172.4,3172.3,0.4844]
[1736825543553,0.31537,3172.3,3172.0,3.81042272]
[1736825543754,0.31538,3172.2,3172.1,0.4737]
[1736825544058,0.4519,3172.9,3172.1,0.4737]
[1736825544358,0.31537,3172.3,3172.1,0.4737]
[1736825544551,0.31538,3172.2,3172.1,0.4737]
[1736825545055,0.31537,3172.3,3172.1,0.4737]
[1736825545257,0.31538,3172.2,3172.1,0.4737]
[1736825545452,0.31537,3172.3,3172.1,0.4737]
[1736825545658,0.482,3172.7,3172.1,0.4737]
[1736825545864,0.31536,3172.4,3172.1,0.78908]
[1736825546159,0.482,3172.7,3172.1,0.4737]
[1736825546352,0.31537,3172.3,3172.1,0.4737]
[1736825546554,0.31536,3172.4,3172.1,0.78908]
[1736825546854,0.31537,3172.3,3172.1,0.4737]
[1736825547555,0.31538,3172.2,3171.9,0.4747]
[1736825547758,0.31541,3171.9,3171.8,1.276]
[1736825548052,0.31542,3171.7,3171.6,3.2078]
[1736825548453,0.4829,3172.1,3171.5,0.4532]
[1736825548454,0.4869,3172.0,3171.5,0.4532]
[1736825548757,0.31543,3171.6,3171.5,0.4532]
[1736825550353,3.2078,3171.8,3171.3,1.276]
[1736825550553,0.31545,3171.4,3171.3,1.276]
[1736825551161,0.31545,3171.5,3171.3,1.276]
[1736825551462,0.31545,3171.4,3171.3,1.276]
[1736825552258,3.2078,3171.8,3171.2,0.4719]
[1736825552464,0.31542,3171.7,3171.2,0.4719]
[1736825552667,0.31543,3171.7,3171.4,2.84987272]
[1736825552867,0.31544,3171.6,3171.4,2.53442272]
[1736825554258,3.2078,3171.8,3171.4,2.53442272]
[1736825554463,3.2078,3171.8,3171.2,0.4719]
[1736825554665,0.31546,3171.3,3171.2,0.4719]
[1736825556761,0.31546,3171.4,3171.2,0.4719]
[1736825557068,0.31546,3171.3,3171.2,0.4719]
[1736825557465,0.31551,3170.8,3170.6,3.52333]
[1736825557662,0.31551,3170.8,3170.6,2.06553]
[1736825557968,0.9726,3171.2,3170.6,0.473]
[1736825558474,0.31552,3170.7,3170.6,0.473]
[1736825560771,0.9726,3171.2,3170.6,0.473]
[1736825560969,0.31548,3171.1,3170.8,2.53442272]
[1736825561170,0.31548,3171.1,3170.8,2.84993272]
[1736825561869,0.4842,3171.2,3170.8,2.53442272]
[1736825562075,0.79968,3171.2,3170.8,2.53442272]
[1736825562374,0.79968,3171.2,3170.8,2.84993272]
[1736825562766,0.31545,3171.5,3171.1,2.84990272]
[1736825562967,3.2078,3171.7,3171.2,0.4517]
[1736825563170,3.2078,3171.7,3171.2,0.9369]
[1736825563467,0.4547,3171.8,3171.4,2.53442272]
[1736825563667,0.77012,3171.8,3171.4,2.84987272]
[1736825564369,3.2078,3171.7,3171.2,2.2049]
[1736825564576,0.4547,3171.8,3171.6,0.31543]
[1736825564866,0.62748196,3172.3,3171.4,2.53442272]
[1736825564867,0.29583681,3172.4,3171.7,2.53442272]
[1736825565074,0.472,3172.6,3172.1,0.31538]
[1736825565274,0.31535,3172.5,3172.1,0.31538]
[1736825565465,0.31535,3172.5,3172.1,0.78698]
[1736825565774,0.9352,3172.6,3171.9,1.7598]
[1736825566069,1.25054,3172.6,3172.0,2.53442272]
[1736825566368,0.31535,3172.5,3172.1,0.31538]
[1736825566670,0.31535,3172.5,3172.1,0.78698]
[1736825567667,0.55115335,3172.4,3172.1,0.4716]
[1736825567869,0.23579335,3172.4,3172.1,0.4716]
[1736825568071,3.2078,3172.3,3171.9,1.268]
[1736825568373,0.31539,3172.1,3171.9,1.268]
[1736825568875,0.31538,3172.2,3171.9,1.268]
[1736825569275,0.31539,3172.1,3171.9,1.268]
[1736825570070,3.2078,3172.3,3171.9,1.268]
[1736825570372,3.52317,3172.3,3171.9,1.5834]
[1736825570970,3.2078,3172.3,3171.9,1.268]
[1736825571277,3.2078,3172.3,3171.7,2.53442272]
[1736825571471,0.31539,3172.1,3171.7,2.84984272]
[1736825571770,3.2078,3172.3,3171.6,1.268]
[1736825571977,0.31541,3171.9,3171.6,1.268]
[1736825572175,0.4788,3172.0,3171.6,1.268]
[1736825572477,0.4788,3172.0,3171.4,1.268]
[1736825572478,0.31542,3171.7,3171.4,1.268]
[1736825573772,0.31543,3171.7,3171.4,1.268]
[1736825574270,0.31544,3171.6,3171.4,1.268]
[1736825574577,0.31543,3171.7,3171.4,1.268]
[1736825574778,0.31544,3171.5,3171.4,1.268]
[1736825574977,0.31544,3171.5,3171.3,0.4974]
[1736825575173,0.31542,3171.7,3171.3,0.4974]
[1736825575582,0.31544,3171.6,3171.3,0.4974]
[1736825575969,0.31544,3171.6,3171.3,0.81286]
[1736825576780,0.31544,3171.6,3171.3,0.4974]
[1736825577683,0.31545,3171.5,3171.3,0.4974]
[1736825577981,0.4934,3171.8,3171.3,0.4974]
[1736825578172,0.4934,3171.8,3171.4,2.53442272]
[1736825578373,3.2078,3172.3,3171.7,2.53442272]
[1736825578574,3.2078,3172.3,3171.6,3.2078]
[1736825578579,3.2078,3172.3,3172.1,2.53442272]
[1736825578780,3.2078,3172.3,3172.2,0.76718]
[1736825578976,3.2078,3172.3,3172.2,1.24518]
[1736825579380,0.31532,3172.8,3172.4,0.31535]
[1736825579681,0.31534,3172.6,3172.2,1.24517]
[1736825579879,0.31535,3172.5,3172.2,0.9298]
[1736825580483,0.31534,3172.6,3172.2,1.24517]
[1736825580785,3.2078,3172.9,3172.4,2.53442272]
[1736825581081,3.4428672,3172.9,3172.2,0.9298]
[1736825581378,0.31534,3172.6,3172.2,1.24517]
[1736825581778,3.4428672,3172.9,3172.2,0.9298]
[1736825582180,3.4428672,3172.9,3172.5,0.31534]
[1736825582675,3.7581772,3172.9,3172.5,0.31534]
[1736825583479,3.4428672,3172.9,3172.4,2.53442272]
[1736825583678,3.7581772,3172.9,3172.5,0.31534]
[1736825583875,0.31532,3172.8,3172.4,2.84977272]
[1736825584584,3.7581772,3172.9,3172.5,0.31534]
[1736825585682,0.31532,3172.8,3172.4,2.53442272]
[1736825586088,3.4428672,3172.9,3172.5,0.31534]
[1736825586089,3.7581772,3172.9,3172.5,0.31534]
[1736825586382,3.4428672,3172.9,3172.6,0.31533]
[1736825586886,3.7581772,3172.9,3172.5,0.31534]
[1736825588281,3.4428672,3172.9,3172.4,2.53442272]
[1736825588485,3.4428672,3172.9,3172.3,0.31537]
[1736825588486,0.31533,3172.7,3172.3,0.31537]
[1736825588680,0.31536,3172.4,3172.2,0.4518]
[1736825588876,0.31535,3172.5,3172.2,0.4518]
[1736825589183,0.31536,3172.4,3172.2,0.4518]
[1736825590285,0.31537,3172.3,3172.2,0.4518]
[1736825590484,1.53274752,3172.8,3171.9,1.7246]
[1736825590485,0.31538,3172.2,3171.9,0.4566]
[1736825590688,3.2078,3172.1,3171.2,2.53442272]
[1736825590881,0.31543,3171.7,3171.3,0.31546]
[1736825591085,2.53442272,3172.0,3171.2,1.268]
[1736825591387,0.31546,3171.4,3171.2,1.268]
[1736825591584,0.31545,3171.5,3171.2,1.268]
[1736825591789,0.79934,3171.6,3171.2,4.11789272]
[1736825591984,0.79934,3171.6,3171.3,0.31546]
[1736825592185,3.2078,3171.7,3171.4,0.31545]
[1736825592386,3.2078,3171.7,3171.5,0.80594]
[1736825592590,0.31541,3171.9,3171.5,0.80594]
[1736825592790,0.31541,3171.9,3171.6,0.4708]
[1736825593090,0.4829,3172.0,3171.6,0.4708]
[1736825593292,0.31542,3171.8,3171.6,0.4708]
[1736825593792,0.31541,3171.9,3171.6,0.4708]
[1736825593999,0.31542,3171.8,3171.6,0.4708]
[1736825594181,0.31538,3172.2,3171.8,0.31541]
[1736825594689,0.79826,3172.4,3172.0,0.31539]
[1736825594894,0.31538,3172.2,3171.9,1.267]
[1736825596000,0.31537,3172.3,3171.9,0.3154]
[1736825596185,0.4829,3172.4,3171.8,2.53442272]
[1736825596490,0.4829,3172.4,3171.7,1.7433]
[1736825596689,3.2078,3172.2,3171.6,0.4708]
[1736825596890,0.31542,3171.8,3171.5,1.7575]
[1736825597890,0.475,3172.1,3171.5,0.4905]
[1736825598490,0.31541,3171.9,3171.5,0.80594]
[1736825599090,0.31543,3171.7,3171.5,0.4905]
[1736825599295,0.4573,3171.8,3171.4,1.267]
[1736825599488,0.31544,3171.6,3171.4,1.267]
[1736825599690,0.31548,3171.2,3170.9,3.01182272]
[1736825599889,0.31548,3171.2,3171.0,2.1986]
[1736825600193,0.31547,3171.3,3171.0,2.1986]
[1736825600383,3.01422272,3171.7,3171.0,2.1986]
[1736825600588,0.31548,3171.2,3171.0,2.1986]
[1736825601890,0.31548,3171.2,3171.0,2.51409]
[1736825602598,0.31548,3171.2,3171.0,2.1986]
[1736825603490,3.2078,3171.3,3171.0,1.7388]
[1736825603797,0.31548,3171.1,3171.0,1.7388]
[1736825603995,0.4821,3171.2,3171.0,1.7388]
[1736825604198,0.79758,3171.2,3171.0,1.7388]
[1736825604601,0.31548,3171.1,3171.0,0.4718]
[1736825604790,0.4821,3171.2,3170.6,2.53442272]
[1736825604990,0.31549,3171.1,3170.8,0.31551]
[1736825606704,0.3155,3171.0,3170.7,1.58252]
[1736825606901,0.4821,3171.2,3170.6,2.53442272]
[1736825607095,0.4807,3171.1,3170.6,1.267]
[1736825607397,0.31552,3170.7,3170.5,2.219]
[1736825607707,0.31552,3170.7,3170.5,0.952]
[1736825608091,0.4807,3171.1,3170.5,0.952]